fUSD/lending_fUSD_20260228
["ID","MTS","AMOUNT","RATE_DAILY","PERIOD"]
[406867424,1772253044614,-500.0,0.00013699,2]
[406867425,1772253044623,-500.0,0.00013699,2]
[406867426,1772253044633,-500.0,0.00013699,2]
[406867427,1772253044643,-527.70889143,0.00013699,2]
[406867428,1772253044652,-500.59954832,0.00013699,2]
[406867429,1772253044662,-500.0,0.00013699,2]
[406867430,1772253044672,-501.57340438,0.00013699,2]
[406867431,1772253044682,-502.97347901,0.00013699,2]
[406867432,1772253044691,-500.0,0.00013699,2]
[406867433,1772253044700,-500.0,0.00013699,2]
[406867434,1772253044709,-500.0,0.00013699,2]
[406867435,1772253044719,-500.0,0.00013699,2]
[406867436,1772253044728,-500.0,0.00013699,2]
[406867437,1772253044739,-500.0,0.00013699,2]
[406867438,1772253044748,-500.0,0.00013699,2]
[406867439,1772253044764,-500.0,0.00013699,2]
[406867440,1772253044780,-164.35592024,0.00013699,2]
[406867441,1772253044790,-500.0,0.00013699,2]
[406867442,1772253044800,-500.0,0.00013699,2]
[406867443,1772253044810,-500.0,0.00013699,2]
[406867444,1772253044820,-500.0,0.00013699,2]
[406867445,1772253044830,-500.0,0.00013699,2]
[406867446,1772253044840,-500.0,0.00013699,2]
[406867447,1772253044854,-500.0,0.00013699,2]
[406867448,1772253044863,-500.0,0.00013699,2]
[406867449,1772253044872,-500.81982724,0.00013699,2]
[406867450,1772253044882,-500.0,0.00013699,2]
[406867451,1772253044891,-507.53207689,0.00013699,2]
[406867452,1772253044900,-500.0,0.00013699,2]
[406867453,1772253044910,-500.0,0.00013699,2]
[406867454,1772253044919,-310.96112452,0.00013699,2]
[406867455,1772253044929,-500.0,0.00013699,2]
[406867456,1772253044938,-500.0,0.00013699,2]
[406867457,1772253044948,-500.0,0.00013699,2]
[406867458,1772253044957,-500.5697584,0.00013699,2]
[406867459,1772253044966,-915.2,0.00013699,2]
[406867460,1772253044976,-29999.99,0.00013699,2]
[406867461,1772253044985,-9999.99,0.00013699,2]
[406867462,1772253044995,-161.82,0.000137,2]
[406867463,1772253045004,-444.25243944,0.00013729,2]
[406867464,1772253045013,-3174.17877476,0.00013729,2]
[406867465,1772253045022,-26359.79970691,0.00013806,2]
[406867466,1772253045031,-500.0,0.0001385,2]
[406867467,1772253045040,-500.0,0.0001385,2]
[406867468,1772253045050,-500.0,0.0001385,2]
[406867469,1772253045061,-2721.37674724,0.00013858,2]
[406867470,1772253045070,-514.0,0.0001411,2]
[406867471,1772253045080,-2258.0,0.0001414,2]
[406867472,1772253045089,-1000.0,0.00014143,2]
[406867473,1772253045098,-1000.0,0.00014247,2]
[406867474,1772253045107,-687.41667409,0.00014247,2]
[406867475,1772253045117,-1000.0,0.00014247,2]
[406867476,1772253045127,-1000.0,0.00014247,2]
[406867477,1772253045136,-1000.0,0.00014247,2]
[406867478,1772253045146,-1000.0,0.00014247,2]
[406867479,1772253045156,-1008.99447725,0.00014247,2]
[406867480,1772253045165,-1000.0,0.00014247,2]
[406867481,1772253045175,-1000.0,0.00014247,2]
[406867482,1772253045185,-510.84264222,0.00014247,2]
[406867483,1772253045194,-1000.0,0.00014247,2]
[406867484,1772253045204,-1000.0,0.00014247,2]
[406867485,1772253045213,-1000.0,0.00014247,2]
[406867486,1772253045223,-513.58694386,0.00014247,2]
[406867487,1772253045233,-1000.0,0.00014247,2]
[406867488,1772253045243,-1000.0,0.00014247,2]
[406867489,1772253045253,-1000.0,0.00014247,2]
[406867490,1772253045262,-1000.0,0.00014247,2]
[406867491,1772253045273,-1000.0,0.00014247,2]
[406867492,1772253045283,-1000.0,0.00014247,2]
[406867493,1772253045294,-1000.0,0.00014247,2]
[406867494,1772253045305,-1000.0,0.00014247,2]
[406867495,1772253045316,-1000.0,0.00014247,2]
[406867496,1772253045325,-1000.0,0.00014247,2]
[406867497,1772253045335,-1000.0,0.00014247,2]
[406867498,1772253045345,-1007.66164344,0.00014247,2]
[406867499,1772253045354,-483.72968394,0.00014253,2]
[406867500,1772253045364,-920.98,0.00014384,2]
[406867501,1772253045373,-7322.32814893,0.00014676,2]
[406867502,1772253045382,-430.58615362,0.00014795,2]
[406867503,1772253045391,-1500.0,0.00014795,2]
[406867504,1772253045401,-1500.0,0.00014795,2]
[406867505,1772253045410,-1148.80880452,0.00014795,2]
[406867506,1772253045420,-1512.5028717,0.00014795,2]
[406867507,1772253045429,-1500.0,0.00014795,2]
[406867508,1772253045438,-1500.0,0.00014795,2]
[406867509,1772253045448,-1500.0,0.00014795,2]
[406867510,1772253045457,-1500.0,0.00014795,2]
[406867511,1772253045467,-1500.0,0.00014795,2]
[406867512,1772253045476,-1500.0,0.00014795,2]
[406867513,1772253045485,-789.8901313,0.00014795,2]
[406867514,1772253045495,-1500.0,0.00014795,2]
[406867515,1772253045504,-1145.47642,0.00014795,2]
[406867516,1772253045514,-1500.0,0.00014795,2]
[406867517,1772253045523,-1500.0,0.00014795,2]
[406867518,1772253045533,-1500.0,0.00014795,2]
[406867519,1772253045542,-1500.0,0.00014795,2]
[406867520,1772253045553,-742.07812553,0.00014795,2]
[406867521,1772253045563,-1500.0,0.00014795,2]
[406867522,1772253045573,-1500.0,0.00014795,2]
[406867523,1772253045582,-26359.79970691,0.0001483,2]
[406867524,1772253045591,-250.0,0.00015,2]
[406867525,1772253045601,-920.98,0.00015068,2]
[406867526,1772253045610,-2721.37674724,0.00015205,2]
[406867527,1772253045619,-252.25528688,0.00015222,2]
[406867528,1772253045628,-864.47,0.00015333,2]
[406867529,1772253045637,-247.77184833,0.00015342,2]
[406867530,1772253045647,-216.9791158,0.00015342,2]
[406867531,1772253045656,-2000.0,0.00015342,2]
[406867532,1772253045665,-2000.0,0.00015342,2]
[406867533,1772253045675,-205.11520705,0.00015342,2]
[406867534,1772253045684,-1000.0,0.00015342,2]
[406867535,1772253045693,-2000.0,0.00015342,2]
[406867536,1772253045703,-2000.0,0.00015342,2]
[406867537,1772253045712,-1517.58422612,0.00015342,2]
[406867538,1772253045722,-2000.0,0.00015342,2]
[406867539,1772253045732,-539.84108658,0.00015342,2]
[406867540,1772253045741,-1616.65379419,0.00015342,2]
[406867541,1772253045751,-2000.0,0.00015342,2]
[406867542,1772253045760,-2000.0,0.00015342,2]
[406867543,1772253045769,-1202.07266483,0.00015342,2]
[406867544,1772253045778,-8385.29896884,0.000154,2]
[406867545,1772253045788,-160.0,0.0001544,2]
[406867546,1772253045797,-174.04581251,0.0001544,2]
[406867547,1772253045806,-9990.0,0.00015471,2]
[406867548,1772253045816,-841.0,0.00015554,2]
[406867549,1772253045825,-1000.0,0.00015557,2]
[406867550,1772253045836,-1432.94041959,0.00015607,5]
[406867551,1772253045847,-500.0,0.00015607,2]
[406867552,1772253045857,-500.0,0.00015607,2]
[406867553,1772253045867,-500.0,0.00015607,2]
[406867554,1772253045876,-500.0,0.00015607,2]
[406867555,1772253045886,-500.0,0.00015607,2]
[406867556,1772253045896,-500.0,0.00015607,2]
[406867557,1772253045905,-323.52915924,0.00015607,2]
[406867558,1772253045914,-500.0,0.00015607,2]
[406867559,1772253045925,-500.0,0.00015607,2]
[406867560,1772253045934,-500.0,0.00015607,2]
[406867561,1772253045943,-500.0,0.00015607,2]
[406867562,1772253045953,-500.0,0.00015607,2]
[406867563,1772253045962,-500.0,0.00015607,2]
[406867564,1772253045972,-500.0,0.00015607,2]
[406867565,1772253045982,-500.0,0.00015607,2]
[406867566,1772253045991,-500.0,0.00015607,2]
[406867567,1772253046001,-224.16111404,0.00015607,2]
[406867568,1772253046010,-500.0,0.00015607,2]
[406867569,1772253046019,-500.0,0.00015607,2]
[406867570,1772253046028,-483.13999169,0.00015607,2]
[406867571,1772253046038,-500.0,0.00015607,2]
[406867572,1772253046047,-500.0,0.00015607,2]
[406867573,1772253046057,-500.0,0.00015607,2]
[406867574,1772253046068,-500.0,0.00015607,2]
[406867575,1772253046078,-500.0,0.00015607,2]
[406867576,1772253046087,-500.0,0.00015607,2]
[406867577,1772253046097,-500.0,0.00015607,2]
[406867578,1772253046106,-500.0,0.00015607,2]
[406867579,1772253046116,-500.0,0.00015607,2]
[406867580,1772253046125,-500.0,0.00015607,2]
[406867581,1772253046135,-500.0,0.00015607,2]
[406867582,1772253046145,-500.0,0.00015607,2]
[406867583,1772253046155,-500.0,0.00015607,2]
[406867584,1772253046165,-500.0,0.00015607,2]
[406867585,1772253046174,-500.0,0.00015607,2]
[406867587,1772253046183,-500.0,0.00015607,2]
[406867588,1772253046193,-830.3,0.00015607,2]
[406867589,1772253046202,-830.3,0.00015607,2]
[406867590,1772253046212,-830.3,0.00015607,2]
[406867591,1772253046221,-830.3,0.00015607,2]
[406867592,1772253046231,-830.3,0.00015607,2]
[406867593,1772253046240,-830.3,0.00015607,2]
[406867594,1772253046250,-830.3,0.00015607,2]
[406867595,1772253046260,-830.3,0.00015607,2]
[406867596,1772253046272,-500.0,0.00015607,2]
[406867597,1772253046281,-500.0,0.00015607,2]
[406867598,1772253046290,-500.0,0.00015607,2]
[406867599,1772253046301,-500.0,0.00015607,2]
[406867600,1772253046317,-497.70153186,0.00015607,2]
[406867601,1772253046327,-500.0,0.00015607,2]
[406867602,1772253046337,-500.0,0.00015607,2]
[406867603,1772253046348,-500.0,0.00015607,2]
[406867604,1772253046357,-500.0,0.00015607,2]
[406867605,1772253046368,-500.0,0.00015607,2]
[406867606,1772253046377,-500.0,0.00015607,2]
[406867607,1772253046387,-500.0,0.00015607,2]
[406867608,1772253046397,-500.0,0.00015607,2]
[406867609,1772253046406,-500.0,0.00015607,2]
[406867610,1772253046416,-500.0,0.00015607,2]
[406867611,1772253046426,-595.16967246,0.00015607,2]
[406867612,1772253046435,-500.0,0.00015607,2]
[406867613,1772253046445,-500.0,0.00015607,2]
[406867614,1772253046454,-500.0,0.00015607,2]
[406867615,1772253046464,-500.0,0.00015607,2]
[406867616,1772253046474,-500.0,0.00015607,2]
[406867617,1772253046484,-500.0,0.00015607,2]
[406867618,1772253046493,-500.0,0.00015607,2]
[406867619,1772253046503,-500.0,0.00015607,2]
[406867620,1772253046542,-500.0,0.00015607,2]
[406867621,1772253046556,-529.72247796,0.00015607,2]
[406867622,1772253046567,-7322.32814893,0.00015714,2]
[406867623,1772253046578,-1000.0,0.00015746,7]
[406867624,1772253046587,-920.98,0.00015753,2]
[406867625,1772253046596,-50000.0,0.0001576,2]
[406867626,1772253046606,-289.04,0.00015829,2]
[406867627,1772253046615,-26359.79970691,0.00015853,2]
[406867629,1772253046625,-2500.0,0.0001589,2]
[406867631,1772253046634,-2030.40923373,0.0001589,2]
[406867633,1772253046643,-710.27511259,0.0001589,2]
[406867635,1772253046653,-2500.0,0.0001589,2]
[406867637,1772253046663,-1007.20616861,0.0001589,2]
[406867639,1772253046672,-2500.0,0.0001589,2]
[406867641,1772253046681,-2276.78956072,0.0001589,2]
[406867643,1772253046691,-5018.36116075,0.0001596,2]
[406867645,1772253046700,-258.47677559,0.00016023,2]
[406867647,1772253046709,-1557.86610815,0.00016106,2]
[406867649,1772253046718,-9999.99,0.00016116,2]
[406867651,1772253046727,-294.508236,0.00016281,7]
[406867653,1772253046736,-1295.0,0.00016438,2]
[406867655,1772253046745,-920.98,0.00016438,2]
[406867657,1772253046755,-266.81662109,0.00016438,2]
[406867659,1772253046764,-1487.0338117,0.00016438,2]
[406867661,1772253046773,-2295.1037872,0.00016438,2]
[406867663,1772253046783,-3000.0,0.00016438,2]
[406867665,1772253046792,-1295.0,0.00016493,2]
[406867667,1772253046801,-2184.36,0.00016544,2]
[406867669,1772253046813,-1295.0,0.00016548,2]
[406867671,1772253046822,-2721.37674724,0.00016553,2]
[406867673,1772253046831,-1295.0,0.00016602,2]
[406867675,1772253046840,-1295.0,0.00016657,2]
[406867677,1772253046851,-5405.417992,0.00016704,7]
[406867679,1772253046860,-368.704293,0.00016704,7]
[406867681,1772253046869,-1295.0,0.00016712,2]
[406867683,1772253046877,-167.19,0.00016712,2]
[406867684,1772253046886,-7322.32814893,0.00016753,2]
[406867686,1772253046895,-308.99,0.00016765,2]
[406867688,1772253046904,-1295.0,0.00016767,2]
[406867690,1772253046913,-864.47,0.00016769,2]
[406867692,1772253046923,-2000.0,0.0001681,2]
[406867695,1772253046932,-1295.0,0.00016822,2]
[406867696,1772253046941,-1295.0,0.00016876,2]
[406867698,1772253046951,-26359.79970691,0.00016877,2]
[406867701,1772253046960,-2000.0,0.0001691,2]
[406867703,1772253046970,-1295.0,0.00016931,2]
[406867705,1772253046979,-150.0,0.00016938,7]
[406867706,1772253046988,-1000.0,0.00016971,2]
[406867709,1772253046997,-1295.0,0.00016986,2]
[406867711,1772253047007,-3500.0,0.00016986,2]
[406867713,1772253047016,-1015.21,0.00017,3]
[406867715,1772253047025,-300.0,0.00017,2]
[406867717,1772253047035,-2000.0,0.0001701,2]
[406867719,1772253047044,-1295.0,0.00017041,2]
[406867721,1772253047055,-1295.0,0.00017096,2]
[406867723,1772253047064,-267.46074303,0.00017099,2]
[406867725,1772253047074,-5507.95366483,0.000171,2]
[406867727,1772253047083,-1295.0,0.0001715,2]
[406867729,1772253047092,-350.0,0.00017204,2]
[406867731,1772253047102,-1295.0,0.00017205,2]
[406867733,1772253047111,-1295.0,0.0001726,2]
[406867735,1772253047120,-1295.0,0.00017315,2]
[406867737,1772253047130,-350.0,0.00017357,2]
[406867739,1772253047139,-350.0,0.00017365,2]
[406867741,1772253047147,-1295.0,0.0001737,2]
[406867743,1772253047156,-864.47,0.00017395,2]
[406867745,1772253047166,-1295.0,0.00017424,2]
[406867747,1772253047175,-1295.0,0.00017479,2]
[406867749,1772253047183,-1295.0,0.00017534,2]
[406867750,1772253047193,-3979.36214283,0.00017534,2]
[406867752,1772253047202,-350.0,0.0001757,2]
[406867754,1772253047211,-1295.0,0.00017589,2]
[406867756,1772253047220,-3400.0,0.000176,6]
[406867758,1772253047229,-1295.0,0.00017643,2]
[406867760,1772253047237,-277.35679052,0.00017647,2]
[406867762,1772253047246,-350.0,0.00017663,2]
[406867764,1772253047255,-1310.69339842,0.00017698,2]
[406867766,1772253047265,-500.0,0.00017699,2]
[406867768,1772253047276,-500.0,0.00017699,2]
[406867770,1772253047285,-3400.0,0.000177,6]
[406867772,1772253047294,-7322.32814893,0.00017791,2]
[406867774,1772253047304,-3400.0,0.000178,6]
[406867776,1772253047313,-5000.0,0.00017808,2]
[406867778,1772253047324,-500.0,0.00017808,2]
[406867780,1772253047333,-800.0,0.00017808,2]
[406867782,1772253047343,-280.11464,0.0001782,2]
[406867784,1772253047352,-280.11464,0.0001782,2]
[406867786,1772253047361,-280.11464,0.0001782,2]
[406867788,1772253047371,-280.11464,0.0001782,2]
[406867790,1772253047380,-280.11464,0.0001782,2]
[406867792,1772253047389,-280.11464,0.0001782,2]
[406867794,1772253047399,-864.47,0.00017829,2]
[406867796,1772253047408,-140156.87642438,0.0001783,2]
[406867798,1772253047418,-151.111744,0.0001783,2]
[406867800,1772253047428,-151.0,0.0001783,2]
[406867802,1772253047437,-151.0,0.0001783,2]
[406867804,1772253047446,-190.6568,0.0001783,2]
[406867806,1772253047456,-151.0,0.0001783,2]
[406867808,1772253047464,-151.0,0.0001783,2]
[406867810,1772253047474,-151.0,0.0001783,2]
[406867812,1772253047483,-151.0,0.0001783,2]
[406867814,1772253047495,-500.0,0.00017863,2]
[406867816,1772253047504,-1000.0,0.00017863,2]
[406867818,1772253047516,-733.851,0.00017863,2]
[406867820,1772253047525,-153.089004,0.00017882,2]
[406867822,1772253047534,-155.671451,0.00017882,2]
[406867824,1772253047543,-25000.0,0.00017882,3]
[406867826,1772253047555,-25000.0,0.00017891,3]
[406867828,1772253047564,-648.3262986,0.00017899,2]
[406867830,1772253047573,-500.0,0.00017899,2]
[406867832,1772253047582,-500.0,0.00017899,2]
[406867834,1772253047591,-830.3,0.00017899,2]
[406867836,1772253047600,-500.0,0.00017899,2]
[406867838,1772253047610,-151.0,0.00017899,3]
[406867841,1772253047619,-156.74932774,0.00017899,3]
[406867842,1772253047629,-500.0,0.00017899,3]
[406867844,1772253047638,-500.0,0.00017899,3]
[406867846,1772253047647,-668.65185757,0.00017899,3]
[406867848,1772253047656,-500.0,0.00017899,3]
[406867850,1772253047665,-693.3919763,0.00017899,3]
[406867852,1772253047675,-500.0,0.00017899,3]
[406867854,1772253047684,-500.0,0.00017899,3]
[406867856,1772253047693,-719.04747942,0.00017899,3]
[406867858,1772253047703,-500.0,0.00017899,3]
[406867861,1772253047712,-269.917619,0.00017899,3]
[406867862,1772253047721,-279.9045709,0.00017899,3]
[406867864,1772253047731,-500.0,0.00017899,3]
[406867867,1772253047741,-745.65223616,0.00017899,3]
[406867869,1772253047750,-151.0,0.00017899,3]
[406867870,1772253047760,-238.05592954,0.00017899,3]
[406867873,1772253047770,-500.0,0.00017899,3]
[406867875,1772253047780,-773.2413689,0.00017899,3]
[406867877,1772253047789,-157.76865277,0.00017899,3]
[406867879,1772253047798,-801.85129955,0.00017899,3]
[406867881,1772253047808,-500.0,0.00017899,3]
[406867883,1772253047818,-831.51979763,0.00017899,3]
[406867885,1772253047827,-500.0,0.00017899,3]
[406867887,1772253047837,-500.0,0.00017899,3]
[406867889,1772253047846,-862.28603014,0.00017899,3]
[406867891,1772253047859,-500.0,0.00017899,3]
[406867893,1772253047868,-500.0,0.00017899,3]
[406867895,1772253047877,-500.0,0.00017899,3]
[406867897,1772253047887,-894.19061326,0.00017899,3]
[406867899,1772253047896,-500.0,0.00017899,3]
[406867901,1772253047906,-927.27566595,0.00017899,3]
[406867903,1772253047915,-500.0,0.00017899,3]
[406867904,1772253047926,-961.58486559,0.00017899,3]
[406867907,1772253047936,-500.0,0.00017899,3]
[406867909,1772253047946,-997.16350561,0.00017899,3]
[406867911,1772253047955,-500.0,0.00017899,3]
[406867913,1772253047965,-500.0,0.00017899,3]
[406867915,1772253047975,-500.0,0.00017899,3]
[406867917,1772253047984,-500.0,0.00017899,3]
[406867919,1772253047993,-500.0,0.00017899,3]
[406867921,1772253048005,-500.0,0.00017899,3]
[406867923,1772253048014,-500.0,0.00017899,3]
[406867925,1772253048024,-500.0,0.00017899,3]
[406867927,1772253048033,-174.61919141,0.00017899,3]
[406867929,1772253048042,-500.0,0.00017899,3]
[406867931,1772253048052,-181.08010149,0.00017899,3]
[406867933,1772253048063,-640.55318202,0.00017899,3]
[406867935,1772253048072,-187.78006525,0.00017899,3]
[406867937,1772253048081,-151.0,0.00017899,3]
[406867939,1772253048091,-227.3234191,0.00017899,3]
[406867941,1772253048100,-151.0,0.00017899,3]
[406867943,1772253048109,-151.0,0.00017899,3]
[406867945,1772253048119,-151.0,0.00017899,3]
[406867947,1772253048128,-151.0,0.00017899,3]
[406867949,1772253048138,-151.0,0.00017899,3]
[406867951,1772253048147,-151.0,0.00017899,3]
[406867953,1772253048156,-151.0,0.00017899,3]
[406867955,1772253048166,-500.0,0.00017899,3]
[406867957,1772253048176,-151.0,0.00017899,3]
[406867959,1772253048185,-500.0,0.00017899,3]
[406867961,1772253048195,-151.0,0.00017899,3]
[406867963,1772253048205,-500.0,0.00017899,3]
[406867965,1772253048214,-151.0,0.00017899,3]
[406867967,1772253048224,-500.0,0.00017899,3]
[406867969,1772253048234,-151.0,0.00017899,3]
[406867971,1772253048244,-500.0,0.00017899,3]
[406867973,1772253048255,-500.0,0.00017899,3]
[406867975,1772253048264,-500.0,0.00017899,3]
[406867977,1772253048274,-500.0,0.00017899,3]
[406867978,1772253048285,-500.0,0.00017899,3]
[406867979,1772253048294,-502.46010637,0.00017899,3]
[406867980,1772253048304,-500.0,0.00017899,3]
[406867981,1772253048315,-500.0,0.00017899,3]
[406867982,1772253048325,-500.0,0.00017899,3]
[406867983,1772253048335,-500.0,0.00017899,2]
[406867984,1772253048344,-32888.5933,0.000179,2]
[406867985,1772253048354,-264.4246,0.000179,2]
[406867986,1772253048364,-1000.0,0.000179,2]
[406867987,1772253048374,-25000.0,0.000179,3]
[406867988,1772253048384,-26359.79970691,0.000179,2]
[406867989,1772253048394,-151.0,0.000179,2]
[406867990,1772253048404,-151.0,0.000179,2]
[406867991,1772253048414,-151.0,0.000179,2]
[406867992,1772253048424,-151.0,0.000179,2]
[406867993,1772253048434,-151.0,0.000179,2]
[406867994,1772253048444,-151.0,0.000179,2]
[406867995,1772253048454,-273.196944,0.000179,2]
[406867996,1772253048463,-3400.0,0.000179,6]
[406867997,1772253048473,-1468.05806808,0.000179,2]
[406867998,1772253048482,-2721.37674724,0.000179,2]
[406867999,1772253048492,-8516.81299173,0.000179,2]
[406868000,1772253048501,-15896.0,0.000179,2]
[406868001,1772253048511,-500.0,0.00017918,2]
[406868002,1772253048521,-197.0,0.00017935,2]
[406868003,1772253048531,-253.7336316,0.00017942,2]
[406868004,1772253048540,-289.04,0.0001796,2]
[406868005,1772253048549,-504.26225979,0.00017972,2]
[406868006,1772253048559,-350.0,0.00017975,2]
[406868007,1772253048569,-506.23015856,0.00017982,2]
[406868008,1772253048578,-1557.86610815,0.0001799,2]
[406868009,1772253048588,-864.47,0.00017996,2]
[406868010,1772253048597,-864.47,0.00017996,2]
[406868011,1772253048607,-1432.9404196,0.00017999,5]
[406868012,1772253048617,-300.0,0.00017999,2]
[406868013,1772253048627,-300.0,0.00017999,2]
[406868014,1772253048636,-864.47,0.00017999,2]
[406868015,1772253048646,-864.47,0.00017999,2]
[406868016,1772253048656,-864.47,0.00017999,2]
[406868017,1772253048666,-864.47,0.00017999,2]
[406868018,1772253048675,-864.47,0.00017999,2]
[406868019,1772253048685,-864.53521615,0.00017999,2]
[406868020,1772253048694,-500.0,0.00017999,2]
[406868021,1772253048704,-500.0,0.00017999,2]
[406868022,1772253048713,-500.0,0.00017999,2]
[406868023,1772253048723,-500.0,0.00017999,2]
[406868024,1772253048733,-500.0,0.00017999,2]
[406868025,1772253048742,-500.0,0.00017999,2]
[406868026,1772253048752,-281.09297896,0.00017999,2]
[406868027,1772253048761,-500.0,0.00017999,2]
[406868028,1772253048771,-500.0,0.00017999,2]
[406868029,1772253048780,-586.80631414,0.00017999,2]
[406868030,1772253048790,-830.3,0.00017999,2]
[406868031,1772253048799,-830.3,0.00017999,2]
[406868032,1772253048809,-830.3,0.00017999,2]
[406868033,1772253048818,-830.3,0.00017999,2]
[406868034,1772253048828,-830.3,0.00017999,2]
[406868035,1772253048838,-830.3,0.00017999,2]
[406868036,1772253048848,-830.3,0.00017999,2]
[406868037,1772253048859,-830.35348064,0.00017999,2]
[406868038,1772253048868,-300.0,0.00017999,2]
[406868039,1772253048878,-500.0,0.00017999,2]
[406868040,1772253048887,-500.0,0.00017999,2]
[406868041,1772253048897,-500.0,0.00017999,2]
[406868042,1772253048906,-180.4202576,0.00017999,2]
[406868043,1772253048916,-365.0454686,0.00017999,2]
[406868044,1772253048926,-300.0,0.00017999,2]
[406868045,1772253048935,-374.04875368,0.00017999,2]
[406868046,1772253048944,-500.0,0.00017999,2]
[406868047,1772253048954,-500.0,0.00017999,2]
[406868048,1772253048963,-500.0,0.00017999,2]
[406868049,1772253048973,-536.88822607,0.00017999,2]
[406868050,1772253048982,-300.0,0.00017999,2]
[406868051,1772253048992,-300.0,0.00017999,2]
[406868052,1772253049001,-292.6907697,0.00017999,2]
[406868053,1772253049011,-195.66587194,0.00017999,2]
[406868054,1772253049020,-560010.40068097,0.00018,2]
[406868055,1772253049030,-2664.37838666,0.00018,2]
[406868056,1772253049039,-2099546.33882898,0.00018,2]
[406868057,1772253049049,-1196.18434235,0.00018,2]
[406868058,1772253049059,-257.33277415,0.00018,2]
[406868059,1772253049068,-684740.51356035,0.00018,2]
[406868060,1772253049171,-857.97981913,0.00018,2]
[406868061,1772253049182,-1514.74391106,0.00018,2]
[406868062,1772253049194,-558.38385669,0.00018,2]
[406868063,1772253049206,-401.616215,0.00018,2]
[406868064,1772253049253,-191804.9097469,0.00018,2]
[406868065,1772253049277,-3950.60752974,0.00018,2]
[406868066,1772253049318,-444.25243944,0.000179,2]
[406868067,1772253049328,-496.48131466,0.000179,2]
[406868068,1772253049339,-2677.6974601,0.000179,2]
[406868069,1772253049349,-46923.64180705,0.00018,2]
[406868070,1772253049361,-4353.21264263,0.00018,2]
[406868071,1772253049373,-256865.18524797,0.00018,2]
[406868072,1772253049385,-7278.78791481,0.00018,2]
[406868073,1772253049397,-557.96001026,0.00018,2]
[406868074,1772253049409,-2933.58524127,0.00018,2]
[406868075,1772253049421,-4441.23959371,0.00018,2]
[406868076,1772253049545,-1472.928736,0.00018,2]
[406868077,1772253049556,-248224.70212637,0.00018,2]
[406868078,1772253049568,-5859.80000033,0.00018,2]
[406868079,1772253049736,-92.83575381,0.00018,2]
[406868080,1772253049747,-966.39256485,0.00018,2]
[406868081,1772253049764,-503.01854449,0.00013698,2]
[406868082,1772253049773,-49869.45427485,0.00018,2]
[406868083,1772253049784,-521.50544742,0.00018,2]
[406868084,1772253103372,1400.0,8.8e-05,3]
[406868085,1772253105462,2900.0,8.9e-05,3]
[406868086,1772253107554,4400.0,9e-05,3]
[406868087,1772253143392,500.0,8.7e-05,3]
[406868088,1772253145649,1000.0,8.8e-05,3]
[406868089,1772253147733,1500.0,8.9e-05,3]
[406868090,1772253149823,2000.0,9e-05,3]
[406868092,1772253309221,175.0,9e-05,3]
[406868093,1772253320879,552.22,4.416e-05,2]
[406868094,1772253321091,552.22,4.606e-05,2]
[406868095,1772253321313,552.22,4.796e-05,2]
[406868096,1772253321652,552.22,4.986e-05,2]
[406868097,1772253321754,552.22,5.177e-05,2]
[406868098,1772253321984,552.22,5.367e-05,2]
[406868099,1772253322374,552.22,5.557e-05,2]
[406868100,1772253322569,552.22,5.747e-05,2]